fUST/lending_fUST_20250930
["ID","MTS","AMOUNT","RATE_DAILY","PERIOD"]
[388474676,1759187304105,-10000.01,0.00021702,2]
[388474677,1759187305446,-10000.01,0.00021702,2]
[388474678,1759187305642,-10000.01,0.00021702,2]
[388474679,1759187305912,-10000.01,0.00021702,2]
[388474680,1759187306120,-10000.01,0.00021702,2]
[388474681,1759187306321,-10000.01,0.00021702,2]
[388474682,1759187333166,-302.13478889,0.00021701,2]
[388474683,1759187333316,-9395.74042222,0.00021702,2]
[388474684,1759187333392,-10000.01,0.00021702,2]
[388474685,1759187333602,-10000.01,0.00021702,2]
[388474686,1759187333824,-10000.01,0.00021702,2]
[388474687,1759187334020,-10000.01,0.00021702,2]
[388474688,1759187334200,-10000.01,0.00021702,2]
[388474689,1759187334542,-10000.01,0.00021702,2]
[388474690,1759187334644,-388.47843484,0.00021702,2]
[388474691,1759187334709,-9223.05313032,0.00021702,2]
[388474692,1759187343502,-485.22356527,0.00021712,2]
[388474693,1759187347821,500.0,0.00021701,2]
[388474694,1759187347906,500.0,0.00021701,2]
[388474695,1759187347994,500.0,0.00021701,2]
[388474696,1759187348081,500.0,0.00021701,2]
[388474697,1759187348163,500.0,0.00021701,2]
[388474698,1759187348241,500.0,0.00021701,2]
[388474699,1759187348323,500.0,0.00021701,2]
[388474700,1759187348416,500.0,0.00021701,2]
[388474701,1759187348503,500.0,0.00021701,2]
[388474702,1759187348588,500.0,0.00021701,2]
[388474703,1759187348688,500.0,0.00021701,2]
[388474704,1759187348769,500.0,0.00021701,2]
[388474705,1759187348852,206.009,0.00021701,2]
[388474706,1759187348939,500.0,0.00021701,2]
[388474707,1759187349062,500.0,0.00021701,2]
[388474708,1759187349159,500.0,0.00021701,2]
[388474709,1759187349242,500.0,0.00021701,2]
[388474710,1759187349315,500.0,0.00021701,2]
[388474711,1759187349402,323.55386946,0.00021701,2]
[388474712,1759187349467,176.44613054,0.00021701,2]
[388474713,1759187349540,500.0,0.00021701,2]
[388474714,1759187349610,500.0,0.00021701,2]
[388474715,1759187359384,500.0,0.00021701,2]
[388474716,1759187359469,266.74093991,0.00021701,2]
[388474717,1759187359555,332.03409722,0.00021701,2]
[388474718,1759187380812,227.42792262,0.00021626,2]
[388474719,1759187386274,227.42792261,0.00021627,2]
[388474720,1759187386406,227.42792261,0.00021628,2]
[388474721,1759187386691,227.42792261,0.00021629,2]
[388474722,1759187386986,227.42792261,0.0002163,2]
[388474723,1759187390721,500.0,0.00021701,2]
[388474724,1759187390797,500.0,0.00021701,2]
[388474725,1759187390867,500.0,0.00021701,2]
[388474726,1759187390941,500.0,0.00021701,2]
[388474727,1759187391004,367.33087709,0.00021701,2]
[388474728,1759187391075,500.0,0.00021701,2]
[388474729,1759187391151,500.0,0.00021701,2]
[388474730,1759187391224,521.57541773,0.00021701,2]
[388474731,1759187391291,193.58331472,0.00021701,2]
[388474732,1759187391364,253.02865642,0.00021701,2]
[388474733,1759187391446,500.0,0.00021701,2]
[388474734,1759187391525,500.0,0.00021701,2]
[388474735,1759187391598,500.0,0.00021701,2]
[388474736,1759187391672,246.97134358,0.00021701,2]
[388474737,1759187392230,500.0,0.00021701,2]
[388474738,1759187392460,5.15960973,0.00021701,2]
[388474739,1759187392525,272.42417672,0.00021701,2]
[388474740,1759187392732,500.0,0.00021701,2]
[388474741,1759187397457,500.0,0.00021701,2]
[388474742,1759187403360,-363.91767395,0.00021712,2]
[388474743,1759187405066,500.0,0.00021701,2]
[388474744,1759187405178,500.0,0.00021701,2]
[388474745,1759187405267,500.0,0.00021701,2]
[388474746,1759187405359,500.0,0.00021701,2]
[388474747,1759187405456,500.0,0.00021701,2]
[388474748,1759187405547,500.0,0.00021701,2]
[388474749,1759187405641,527.03900435,0.00021701,2]
[388474750,1759187407647,246.97134358,0.00021701,2]
[388474751,1759187419970,5498.16430417,0.00021702,2]
[388474752,1759187420045,10000.01,0.00021702,2]
[388474753,1759187420121,10000.01,0.00021702,2]
[388474754,1759187420199,10000.01,0.00021702,2]
[388474755,1759187420276,10000.01,0.00021702,2]
[388474756,1759187420354,10000.01,0.00021702,2]
[388474757,1759187420434,10000.01,0.00021702,2]
[388474758,1759187420512,10000.01,0.00021702,2]
[388474759,1759187420587,10000.01,0.00021702,2]
[388474771,1759187431983,-91653.32456548,0.00021702,2]
[388474779,1759187432064,-2478.13589126,0.00021702,2]
[388474781,1759187432075,-427.66418966,0.00021702,2]
[388474794,1759187435302,-425.85830172,0.00021702,2]
[388474795,1759187435506,-10000.01,0.00021702,2]
[388474815,1759187437967,-4863.63366066,0.00021702,2]
[388474817,1759187437978,-899.8865546,0.00021702,2]
[388474819,1759187437989,-2995.75892469,0.00021702,2]
[388474821,1759187438000,-858.37077538,0.00021702,2]
[388474823,1759187438011,-16587.35222474,0.00021702,2]
[388474825,1759187438026,-6014.1617539,0.00021702,2]
[388474827,1759187438037,-4128.12962731,0.00021702,2]
[388474879,1759187439985,-17214.7202934,0.00021702,2]
[388474917,1759187443108,-806.06153892,0.00021702,2]
[388474918,1759187443120,-950.0,0.00021702,2]
[388474920,1759187443615,-10000.01,0.00021702,2]
[388474924,1759187443981,-10000.01,0.00021702,2]
[388474941,1759187444216,-10000.01,0.00021702,2]
[388474942,1759187444559,-10000.01,0.00021702,2]
[388474959,1759187444779,-10000.01,0.00021702,2]
[388474987,1759187445041,-10000.01,0.00021702,2]
[388475010,1759187445253,-10000.01,0.00021702,2]
[388475034,1759187445481,-10000.01,0.00021702,2]
[388475057,1759187445691,-10000.01,0.00021702,2]
[388475252,1759187463498,-300.0,0.00021701,2]
[388475253,1759187463656,-9400.01,0.00021702,2]
[388475254,1759187463826,-10000.01,0.00021702,2]
[388475255,1759187463960,-10000.01,0.00021702,2]
[388475256,1759187464214,-4798.56739411,0.00021702,2]
[388475257,1759187465270,171.77320968,0.00021701,2]
[388475258,1759187465438,231.1020021,0.00021701,2]
[388475259,1759187465499,268.8979979,0.00021701,2]
[388475260,1759187465581,355.25764791,0.00021701,2]
[388475261,1759187472088,272.93825547,0.00021701,2]
[388475262,1759187490485,500.0,0.00021701,2]
[388475263,1759187490554,460.02726911,0.00021701,2]
[388475264,1759187543391,500.0,0.00021701,2]
[388475265,1759187543510,500.0,0.00021701,2]
[388475266,1759187543611,500.0,0.00021701,2]
[388475267,1759187543708,500.0,0.00021701,2]
[388475268,1759187543795,500.0,0.00021701,2]
[388475269,1759187543897,500.0,0.00021701,2]
[388475270,1759187543985,500.0,0.00021701,2]
[388475271,1759187544073,500.0,0.00021701,2]
[388475272,1759187544161,500.0,0.00021701,2]
[388475273,1759187544244,500.0,0.00021701,2]
[388475274,1759187544336,500.0,0.00021701,2]
[388475275,1759187544414,500.0,0.00021701,2]
[388475276,1759187544497,500.0,0.00021701,2]
[388475277,1759187544641,500.0,0.00021701,2]
[388475278,1759187544762,500.0,0.00021701,2]
[388475279,1759187544850,500.0,0.00021701,2]
[388475280,1759187544931,142.88882961,0.00021701,2]
[388475281,1759187544998,357.11117039,0.00021701,2]
[388475282,1759187545082,500.0,0.00021701,2]
[388475283,1759187545167,500.0,0.00021701,2]
[388475284,1759187545248,500.0,0.00021701,2]
[388475285,1759187545321,500.0,0.00021701,2]
[388475286,1759187545403,500.0,0.00021701,2]
[388475287,1759187545481,500.0,0.00021701,2]
[388475288,1759187545558,500.0,0.00021701,2]
[388475289,1759187545641,500.0,0.00021701,2]
[388475290,1759187545783,500.0,0.00021701,2]
[388475291,1759187545913,500.0,0.00021701,2]
[388475292,1759187546002,500.0,0.00021701,2]
[388475293,1759187546095,500.0,0.00021701,2]
[388475294,1759187546190,500.0,0.00021701,2]
[388475295,1759187546272,563.54348676,0.00021701,2]
[388475296,1759187546360,500.0,0.00021701,2]
[388475297,1759187546456,500.0,0.00021701,2]
[388475298,1759187546575,500.0,0.00021701,2]
[388475299,1759187546660,500.0,0.00021701,2]
[388475300,1759187546737,500.0,0.00021701,2]
[388475301,1759187547109,79.35534285,0.00021701,2]
[388475302,1759187547182,420.64465715,0.00021701,2]
[388475303,1759187568450,500.0,0.00021701,2]
[388475304,1759187568537,500.0,0.00021701,2]
[388475305,1759187568611,500.0,0.00021701,2]
[388475306,1759187568689,267.14978314,0.00021701,2]
[388475307,1759187572138,500.0,0.00021701,2]
[388475308,1759187572213,500.0,0.00021701,2]
[388475309,1759187572292,500.0,0.00021701,2]
[388475310,1759187572375,250.0,0.00021701,2]
[388475311,1759187572460,500.0,0.00021701,2]
[388475312,1759187572534,500.0,0.00021701,2]
[388475313,1759187572861,500.0,0.00021701,2]
[388475314,1759187572945,500.0,0.00021701,2]
[388475315,1759187573024,500.0,0.00021701,2]
[388475316,1759187573103,500.0,0.00021701,2]
[388475317,1759187573186,500.0,0.00021701,2]
[388475318,1759187573265,500.0,0.00021701,2]
[388475319,1759187573351,500.0,0.00021701,2]
[388475320,1759187573431,500.0,0.00021701,2]
[388475321,1759187573510,500.0,0.00021701,2]
[388475322,1759187573596,500.0,0.00021701,2]
[388475323,1759187573667,62.21555971,0.00021701,2]
[388475324,1759187573731,437.78444029,0.00021701,2]
[388475325,1759187573806,500.0,0.00021701,2]
[388475326,1759187573890,500.0,0.00021701,2]
[388475327,1759187573983,500.0,0.00021701,2]
[388475328,1759187574074,500.0,0.00021701,2]
[388475329,1759187574147,500.0,0.00021701,2]
[388475330,1759187590600,500.0,0.00021701,2]
[388475331,1759187590678,9500.01,0.00021686,2]
[388475332,1759187590738,10000.01,0.00021686,2]
[388475333,1759187603927,-5000.0,0.00021469,13]
[388475334,1759187604456,-799.54,0.00021676,10]
[388475335,1759187615345,-5000.0,0.00021469,13]
[388475336,1759187615776,-582.04,0.00021676,10]
[388475337,1759187634057,-5000.0,0.00021469,13]
[388475338,1759187640656,0.01,0.00021373,2]
[388475339,1759187640716,167.99,0.00021373,2]
[388475340,1759187644480,5000.0,0.00021469,2]
[388475341,1759187668528,4832.02,0.00021469,2]
[388475342,1759187668594,167.98,0.00021469,2]
[388475346,1759187716279,931.44673521,0.00021462,2]
[388475347,1759187764838,402.9,0.00020682,2]
[388475348,1759187872909,5888.0,0.00021184,2]
[388475349,1759187877249,2609.68326479,0.00021452,2]
[388475350,1759187877320,3278.31673521,0.00021452,2]
[388475352,1759187934758,-168.0,0.00021562,2]
[388475353,1759187934826,-159.2550529,0.00021586,2]
[388475354,1759187934898,-1894.33624645,0.00021617,2]
[388475355,1759187935420,-4443.1825987,0.00021617,2]
[388475356,1759187935515,-1113.6448026,0.00021617,2]
[388475357,1759187935600,-300.0,0.00021666,2]
[388475358,1759187935964,-2548.84635225,0.00021667,2]
[388475359,1759187936151,-4902.3172955,0.00021667,2]
[388475360,1759187936351,-268.50904167,0.00021671,2]
[388475361,1759187936434,-340.56942336,0.00021671,2]
[388475362,1759187936509,-500.0,0.00021671,2]
[388475363,1759187936840,-310.17470575,0.00021671,2]
[388475364,1759187936910,-500.0,0.00021671,2]
[388475365,1759187936988,-500.0,0.00021671,2]
[388475366,1759187937064,-500.0,0.00021671,2]
[388475367,1759187937138,-452.4430273,0.00021671,2]
[388475368,1759187937218,-500.0,0.00021671,2]
[388475369,1759187937294,-500.0,0.00021671,2]
[388475370,1759187937375,-606.61760384,0.00021671,2]
[388475371,1759187937983,-43.38239616,0.00021671,2]
[388475372,1759187938060,-500.0,0.00021671,2]
[388475373,1759187938137,-500.0,0.00021671,2]
[388475374,1759187938216,-500.0,0.00021671,2]
[388475375,1759187938290,-500.0,0.00021671,2]
[388475376,1759187938368,-500.0,0.00021671,2]
[388475377,1759187938440,-650.0,0.00021671,2]
[388475378,1759187938520,-500.0,0.00021671,2]
[388475379,1759187938595,-196.34997591,0.00021671,2]
[388475380,1759187938668,-336.33766715,0.00021671,2]
[388475381,1759187938745,-500.0,0.00021671,2]
[388475382,1759187938827,-47.86992156,0.00021671,2]
[388475383,1759187938920,-452.13007844,0.00021671,2]
[388475384,1759187939000,-500.0,0.00021671,2]
[388475385,1759187939076,-500.0,0.00021671,2]
[388475386,1759187939152,-201.50483186,0.00021671,2]
[388475387,1759187939223,-500.0,0.00021671,2]
[388475388,1759187939294,-500.0,0.00021671,2]
[388475389,1759187939374,-500.0,0.00021671,2]
[388475390,1759187939448,-500.0,0.00021671,2]
[388475391,1759187939523,-500.0,0.00021671,2]
[388475392,1759187939597,-500.0,0.00021671,2]
[388475393,1759187939669,-192.7401794,0.00021671,2]
[388475394,1759187939908,-307.2598206,0.00021671,2]
[388475395,1759187939986,-500.0,0.00021671,2]
[388475396,1759187940083,-500.0,0.00021671,2]
[388475397,1759187940165,-500.0,0.00021671,2]
[388475398,1759187940255,-500.0,0.00021671,2]
[388475399,1759187940333,-500.0,0.00021671,2]
[388475400,1759187940419,-500.0,0.00021671,2]
[388475401,1759187940494,-500.0,0.00021671,2]
[388475402,1759187940562,-500.0,0.00021671,2]
[388475403,1759187940630,-500.0,0.00021671,2]
[388475404,1759187941035,-200.46,0.00021663,10]
[388475405,1759187941110,-500.0,0.00021671,2]
[388475406,1759187941183,-456.64419222,0.00021671,2]
[388475407,1759187941255,-500.0,0.00021671,2]
[388475408,1759187941329,-1200.0,0.00021671,2]
[388475409,1759187947565,-5065.50082854,0.00021672,2]
[388475410,1759187947649,-10000.01,0.00021672,2]
[388475411,1759187947713,-10000.01,0.00021672,2]
[388475412,1759187947800,-10000.01,0.00021672,2]
[388475413,1759187954620,-10000.01,0.00021672,2]
[388475414,1759187954871,-4934.45917146,0.00021672,2]
[388475415,1759187955018,-131.09165708,0.00021672,2]
[388475416,1759187955121,-168.90834292,0.00021672,2]
[388475417,1759187955206,-300.0,0.00021672,2]
[388475418,1759187955294,-300.0,0.00021672,2]
[388475419,1759187955369,-300.0,0.00021672,2]
[388475420,1759187955458,-1200.0,0.00021672,2]
[388475421,1759188001398,300.0,0.00021672,2]
[388475422,1759188002125,300.0,0.00021672,2]
[388475423,1759188002219,300.0,0.00021672,2]
[388475424,1759188002452,300.0,0.00021672,2]
[388475425,1759188003153,300.0,0.00021672,2]
[388475426,1759188006279,1200.0,0.00021672,2]
[388475427,1759188022749,517.7274994,0.00020706,2]
[388475428,1759188062416,300.0,0.00021672,2]
[388475430,1759188122522,300.0,0.00021672,2]
[388475431,1759188139935,1200.0,0.00021672,2]
[388475432,1759188153664,444.46581476,0.00021672,2]
[388475433,1759188153735,55.53418524,0.00021672,2]
[388475434,1759188153817,350.0,0.00021672,2]
[388475435,1759188153907,500.0,0.00021672,2]
[388475436,1759188154172,511.84935469,0.00021672,2]
[388475437,1759188155172,-500.0,0.00021673,2]
[388475438,1759188155240,-500.0,0.00021673,2]
[388475439,1759188155306,-279.20371496,0.00021673,2]
[388475440,1759188155384,-500.0,0.00021673,2]
[388475441,1759188155447,-500.0,0.00021673,2]
[388475442,1759188155518,-500.0,0.00021673,2]
[388475443,1759188155586,-503.12023794,0.00021673,2]
[388475444,1759188155662,-500.0,0.00021673,2]
[388475445,1759188155727,-500.0,0.00021673,2]
[388475446,1759188155793,-500.0,0.00021673,2]
[388475447,1759188156251,-500.0,0.00021673,2]
[388475448,1759188156338,-500.0,0.00021673,2]
[388475449,1759188157378,-1606.16837924,0.00021673,2]
[388475450,1759188157476,-10000.01,0.00021673,2]
[388475451,1759188157576,-10000.01,0.00021673,2]
[388475452,1759188157641,-10000.01,0.00021673,2]
[388475453,1759188157745,-10000.01,0.00021673,2]
[388475454,1759188157822,-1606.21837924,0.00021673,2]
[388475455,1759188157895,-6787.57324152,0.00021673,2]
[388475456,1759188157904,-567.12229403,0.00021675,2]
[388475457,1759188157913,-238.39859635,0.00021675,2]
[388475458,1759188157922,-187.95632917,0.00021675,2]
[388475459,1759188157931,-612.74115969,0.00021676,3]
[388475460,1759188158002,-5556.48884031,0.00021676,3]
[388475461,1759188158011,-3084.62,0.00021676,3]
[388475462,1759188158021,-1358.90115969,0.00021676,3]
[388475463,1759188158105,-183.40884031,0.00021676,3]
[388475464,1759188158115,-771.15,0.00021676,3]
[388475465,1759188158124,-189.40172226,0.00021676,3]
[388475466,1759188158134,-385.58,0.00021676,3]
[388475467,1759188158143,-192.79,0.00021676,3]
[388475468,1759188158152,-578.38,0.00021676,3]
[388475469,1759188158162,-160.0,0.0002168,2]
[388475470,1759188158171,-7539.29943743,0.00021686,2]
[388475471,1759188158246,-8393.79162076,0.00021686,2]
[388475472,1759188165411,-10000.01,0.00021686,2]
[388475473,1759188175422,-167.05,0.00021676,10]
[388475474,1759188175579,-9665.91,0.00021686,2]
[388475475,1759188175652,-10000.01,0.00021686,2]
[388475476,1759188175739,-10000.01,0.00021686,2]
[388475477,1759188175924,-10000.01,0.00021686,2]
[388475478,1759188176107,-10000.01,0.00021686,2]
[388475479,1759188176305,-10000.01,0.00021686,2]
[388475480,1759188176528,-10000.01,0.00021686,2]
[388475481,1759188176722,-10000.01,0.00021686,2]
[388475482,1759188176947,-10000.01,0.00021686,2]
[388475483,1759188195249,-835.28,0.00021676,10]
[388475484,1759188195327,-300.0,0.00021685,2]
[388475485,1759188195554,-7729.45,0.00021686,2]
[388475486,1759188195864,-10000.01,0.00021686,2]
[388475487,1759188195984,-10000.01,0.00021686,2]
[388475488,1759188196051,-10000.01,0.00021686,2]
[388475489,1759188196134,-10000.01,0.00021686,2]
[388475490,1759188196320,-10000.01,0.00021686,2]
[388475491,1759188196546,-10000.01,0.00021686,2]
[388475492,1759188196712,-10000.01,0.00021686,2]
[388475493,1759188196912,-10000.01,0.00021686,2]
[388475494,1759188197642,-10000.01,0.00021686,2]
[388475498,1759188225340,-159.10982068,0.000216,2]
[388475499,1759188225691,-9681.79035864,0.00021686,2]
[388475500,1759188225807,-10000.01,0.00021686,2]
[388475501,1759188225891,-10000.01,0.00021686,2]
[388475502,1759188226069,-500.0,0.00021672,2]
[388475503,1759188226151,-500.0,0.00021672,2]
[388475504,1759188226227,-500.0,0.00021672,2]
[388475505,1759188226298,-500.0,0.00021672,2]
[388475506,1759188226377,-500.0,0.00021672,2]
[388475507,1759188226444,-500.0,0.00021675,2]
[388475508,1759188226958,-197.27587898,0.00021672,2]
[388475509,1759188227026,-327.26515481,0.00021672,2]
[388475510,1759188227096,-500.0,0.00021672,2]
[388475511,1759188227163,-500.0,0.00021672,2]
[388475512,1759188227235,-500.0,0.00021672,2]
[388475513,1759188227301,-184.63613453,0.00021675,2]
[388475514,1759188227441,-1790.83283168,0.00021686,2]
[388475515,1759188227532,-10000.01,0.00021686,2]
[388475516,1759188227610,-428.23479495,0.00021672,2]
[388475517,1759188227680,-500.0,0.00021672,2]
[388475518,1759188227941,-96.30623884,0.00021672,2]
[388475519,1759188228002,-403.69376116,0.00021672,2]
[388475520,1759188228011,-96.30623884,0.00021686,2]
[388475521,1759188228078,-500.0,0.00021686,2]
[388475522,1759188228236,-184.63613453,0.00021672,2]
[388475523,1759188228301,-315.36386547,0.00021672,2]
[388475524,1759188228311,-5266.29179789,0.00021686,2]
[388475525,1759188228406,-428.23479495,0.00021672,2]
[388475526,1759188228472,-71.76520505,0.00021672,2]
[388475527,1759188228482,-428.23479495,0.00021672,2]
[388475528,1759188228551,-71.76520505,0.00021672,2]
[388475529,1759188228561,-8071.77520505,0.00021686,2]
[388475530,1759188235361,-500.0,0.00021672,2]
[388475531,1759188235654,-500.0,0.00021672,2]
[388475532,1759188235725,-500.0,0.00021672,2]
[388475533,1759188235796,-500.0,0.00021672,2]
[388475534,1759188235864,-500.0,0.00021672,2]
[388475535,1759188235938,-500.0,0.00021672,2]
[388475536,1759188236015,-265.22907105,0.00021672,2]
[388475537,1759188236092,-500.0,0.00021672,2]
[388475538,1759188236163,-617.98688535,0.00021672,2]
[388475539,1759188236240,-477.45584501,0.00021672,2]
[388475540,1759188237051,-278.66639718,0.00021686,2]
[388475541,1759188245309,-184.28372171,0.00021595,2]
[388475542,1759188245376,-300.0,0.00021685,2]
[388475543,1759188245565,-9031.44255658,0.00021686,2]
[388475544,1759188246052,-10000.01,0.00021686,2]
[388475545,1759188246259,-10000.01,0.00021686,2]
[388475546,1759188246467,-10000.01,0.00021686,2]
[388475547,1759188246668,-10000.01,0.00021686,2]
[388475548,1759188246906,-10000.01,0.00021686,2]
[388475549,1759188295423,-5000.0,0.00020948,13]
[388475550,1759188295572,-0.01,0.0002116,13]
[388475551,1759188295713,-2331.87022644,0.0002116,13]
[388475552,1759188295795,-250.0,0.00021374,2]
[388475553,1759188295866,-159.10982067,0.000216,2]
[388475554,1759188308282,4518.04990578,0.000216,2]
[388475555,1759188308362,481.95009422,0.000216,2]
[388475558,1759188330861,5000.0,0.000216,2]
[388475559,1759188354273,4518.05990578,0.000216,2]
[388475560,1759188354346,481.94009422,0.000216,2]
[388475561,1759188377342,5000.0,0.000216,2]
[388475565,1759188399909,4518.06990578,0.000216,2]
[388475566,1759188399990,481.93009422,0.000216,2]
[388475570,1759188423204,5000.0,0.000216,2]
[388475572,1759188446923,928.59233927,0.000216,2]
[388475573,1759188466262,203.63980372,0.00021557,2]
[388475574,1759188469135,168.0,0.00021581,2]
[388475576,1759188484849,445.3827707,0.00020706,2]
[388475584,1759188506807,845.73579264,0.00021,10]
[388475603,1759188632475,-160.0,0.00021682,2]
[388475605,1759188632485,-289.0,0.00021684,2]
[388475607,1759188632494,-300.0,0.00021684,2]
[388475609,1759188632504,-300.0,0.00021684,2]
[388475611,1759188632513,-285.0,0.00021684,2]
[388475613,1759188632523,-1200.0,0.00021684,2]
[388475615,1759188632532,-1200.0,0.00021685,2]
[388475617,1759188632541,-9821.07690216,0.00021686,2]
[388475619,1759188632554,-12633.08665379,0.00021686,2]
[388475622,1759188632563,-500.0,0.00021689,2]
[388475623,1759188632573,-500.0,0.00021689,2]
[388475625,1759188632583,-500.0,0.00021689,2]
[388475627,1759188632592,-500.0,0.00021689,2]
[388475629,1759188632601,-500.0,0.00021689,2]
[388475631,1759188632611,-500.0,0.00021689,2]
[388475633,1759188632620,-500.0,0.00021689,2]
[388475635,1759188632628,-500.0,0.00021689,2]
[388475637,1759188632638,-500.0,0.00021689,2]
[388475639,1759188632647,-364.63544739,0.00021689,2]
[388475641,1759188632655,-500.0,0.00021689,2]
[388475643,1759188632664,-618.41632176,0.00021689,2]
[388475645,1759188632673,-500.0,0.00021689,2]
[388475646,1759188632683,-500.0,0.00021689,2]
[388475648,1759188632692,-500.0,0.00021689,2]
[388475650,1759188632702,-500.0,0.00021689,2]
[388475652,1759188632712,-500.0,0.00021689,2]
[388475654,1759188632722,-500.0,0.00021689,2]
[388475656,1759188632731,-561.4903448,0.00021689,2]
[388475657,1759188632740,-500.0,0.00021689,2]
[388475659,1759188632749,-416.26483219,0.00021689,2]
[388475661,1759188632759,-500.0,0.00021689,2]
[388475663,1759188632769,-614.75709251,0.00021689,2]
[388475665,1759188632779,-500.0,0.00021689,2]
[388475667,1759188632789,-375.27276804,0.00021689,2]
[388475669,1759188632799,-500.0,0.00021689,2]
[388475671,1759188632808,-500.0,0.00021689,2]
[388475672,1759188632818,-500.0,0.00021689,2]
[388475674,1759188632827,-500.0,0.00021689,2]
[388475676,1759188632837,-500.0,0.00021689,2]
[388475678,1759188632846,-500.0,0.00021689,2]
[388475680,1759188632855,-500.0,0.00021689,2]
[388475682,1759188632864,-500.0,0.00021689,2]
[388475684,1759188632873,-500.0,0.00021689,2]
[388475685,1759188632883,-500.0,0.00021689,2]
[388475687,1759188632892,-500.0,0.00021689,2]
[388475689,1759188632901,-500.0,0.00021689,2]
[388475691,1759188632910,-500.0,0.00021689,2]
[388475693,1759188632919,-500.0,0.00021689,2]
[388475695,1759188632928,-500.0,0.00021689,2]
[388475697,1759188632937,-500.0,0.00021689,2]
[388475699,1759188632946,-500.0,0.00021689,2]
[388475701,1759188632955,-408.66,0.00021691,10]
[388475703,1759188632964,-335.37222766,0.000217,2]
[388475711,1759188633039,-500.0,0.00021689,2]
[388475713,1759188633048,-500.0,0.00021689,2]
[388475715,1759188633056,-500.0,0.00021689,2]
[388475717,1759188633066,-164.62777234,0.000217,2]
[388475719,1759188633075,-302.16542427,0.000217,2]
[388475721,1759188633084,-500.0,0.000217,2]
[388475723,1759188633093,-376.23089999,0.000217,2]
[388475725,1759188633102,-219.49742365,0.000217,2]
[388475727,1759188633112,-13302.97319996,0.00021701,2]
[388475729,1759188633123,-571.50389657,0.00021701,2]
[388476049,1759188643405,-0.00197357,0.00021689,2]
[388476052,1759188644423,402.92,0.00021525,2]
[388476092,1759188782742,160.0,0.00021525,2]
[388476093,1759188790242,2023.7900081,0.00020692,2]
[388476094,1759188909676,206.0,0.00021128,2]
[388476095,1759188914267,206.0,0.00021257,2]
[388476096,1759188918849,206.0,0.00021305,2]
[388476097,1759188924454,944.0,0.00021168,2]
[388476098,1759188928802,944.0,0.00021194,2]
[388476099,1759188931577,181.033754,0.00020671,2]
[388476100,1759188934284,944.0,0.00021432,2]
[388476101,1759188984997,417.15472785,0.00025,30]
[388476102,1759189045070,631.7999891,0.00020658,2]
[388476103,1759189080791,207.13,0.0001812,2]
[388476104,1759189081123,207.13,0.0001812,2]
[388476105,1759189081437,207.12,0.0001812,2]
[388476106,1759189134046,184.1603761,0.00020655,2]
[388476107,1759189157769,-200.0,0.00021525,2]
[388476108,1759189244407,159.565483,0.000245,30]
[388476111,1759189481027,849.21224637,0.00020616,2]
[388476112,1759189482731,3393.4521365,0.00020616,2]